Workbook

Sheet 1st Int
A1: HXR 1st Integral SW measurements
A2: Background has been subtracted | M2: Center values | O2: Average of 3 points x = -2 to x = 2
A3: y pos | B3: 0 | C3: mm
A4: Gap nominal | B4: 10 | C4: mm | D4: 15 | E4: mm | F4: 20 | G4: mm | H4: 30 | I4: mm | J4: 100 | K4: mm | M4: Gap | N4: Ix [muTm] | O4: Iy [muTm] | Q4: Gap interval | R4: Ix [muTm] | S4: Iy [muTm]
A5: Encoder | B5: ='DF raw data'!B7 -> 17221737 | D5: ='DF raw data'!G7 -> 17201685 | F5: ='DF raw data'!L7 -> 17181656 | H5: ='DF raw data'!Q7 -> 17141629 | J5: ='DF raw data'!V7 -> 16861665 | M5: =B4 -> 10 | N5: =B21 -> 2.33893 | O5: =C21 -> 6.7342202 | Q5: 10-30 | R5: =MAX(N5:N8)-MIN(N5:N8) -> 6.147129963 | S5: =MAX(O5:O8)-MIN(O5:O8) -> 1.409103567
A6: x pos [mm] | B6: Ix [muTm] | C6: Iy [muTm] | D6: Ix [muTm] | E6: Iy [muTm] | F6: Ix [muTm] | G6: Iy [muTm] | H6: Ix [muTm] | I6: Iy [muTm] | J6: Ix [muTm] | K6: Iy [muTm] | M6: =D4 -> 15 | N6: =D21 -> 3.412533337 | O6: =E21 -> 5.325116633 | Q6: 10-100 | R6: =MAX(N5:N9)-MIN(N5:N9) -> 7.53336 | S6: =MAX(O5:O9)-MIN(O5:O9) -> 1.409103567
A7: -10 | B7: ='DF raw data'!B9 -> -4.3969002 | C7: ='DF raw data'!C9 -> 14.22149 | D7: ='DF raw data'!G9 -> -6.2635899 | E7: ='DF raw data'!H9 -> 19.271339 | F7: ='DF raw data'!L9 -> -5.5745001 | G7: ='DF raw data'!M9 -> 12.90019 | H7: ='DF raw data'!Q9 -> -7.6660299 | I7: ='DF raw data'!R9 -> 15.18155 | J7: ='DF raw data'!V9 -> -5.38656 | K7: ='DF raw data'!W9 -> 10.4308 | M7: =F4 -> 20 | N7: =F21 -> 4.1829567 | O7: =G21 -> 5.332376633
A8: -8 | B8: ='DF raw data'!B10 -> 1.1733201 | C8: ='DF raw data'!C10 -> 6.6402998 | D8: ='DF raw data'!G10 -> -10.359 | E8: ='DF raw data'!H10 -> 4.5550799 | F8: ='DF raw data'!L10 -> 1.72247 | G8: ='DF raw data'!M10 -> 11.32039 | H8: ='DF raw data'!Q10 -> 0.073720001 | I8: ='DF raw data'!R10 -> 8.9603996 | J8: ='DF raw data'!V10 -> -3.3345301 | K8: ='DF raw data'!W10 -> 6.8810101 | M8: =H4 -> 30 | N8: =H21 -> -1.964173263 | O8: =I21 -> 6.228799933 | Q8: Accept criteria:
A9: -6 | B9: ='DF raw data'!B11 -> 10.50419 | C9: ='DF raw data'!C11 -> 9.1774302 | D9: ='DF raw data'!G11 -> -7.3316998 | E9: ='DF raw data'!H11 -> 13.03016 | F9: ='DF raw data'!L11 -> 1.00253 | G9: ='DF raw data'!M11 -> 9.0402498 | H9: ='DF raw data'!Q11 -> 2.2349 | I9: ='DF raw data'!R11 -> 8.9984903 | J9: ='DF raw data'!V11 -> -4.6210999 | K9: ='DF raw data'!W11 -> 7.0997801 | M9: =J4 -> 100 | N9: =J21 -> -3.3504033 | O9: =K21 -> 5.4135835 | Q9: Max for 10-30: | R9: 15 | S9: 15
A10: -4 | B10: ='DF raw data'!B12 -> 5.5775599 | C10: ='DF raw data'!C12 -> 11.54549 | D10: ='DF raw data'!G12 -> -4.6191902 | E10: ='DF raw data'!H12 -> 18.46022 | F10: ='DF raw data'!L12 -> -1.23785 | G10: ='DF raw data'!M12 -> 17.19507 | H10: ='DF raw data'!Q12 -> 0.70446998 | I10: ='DF raw data'!R12 -> 13.52768 | J10: ='DF raw data'!V12 -> -2.72913 | K10: ='DF raw data'!W12 -> 5.51437 | Q10: Test result | R10: =IF(R5<R9,"Pass","Fail") -> Pass | S10: =IF(S5<S9,"Pass","Fail") -> Pass
A11: -2 | B11: ='DF raw data'!B13 -> 4.78332 | C11: ='DF raw data'!C13 -> 2.08811 | D11: ='DF raw data'!G13 -> -0.25986999 | E11: ='DF raw data'!H13 -> -2.8777299 | F11: ='DF raw data'!L13 -> 4.98594 | G11: ='DF raw data'!M13 -> 4.7781301 | H11: ='DF raw data'!Q13 -> -2.3215599 | I11: ='DF raw data'!R13 -> 1.94566 | J11: ='DF raw data'!V13 -> -5.27565 | K11: ='DF raw data'!W13 -> -2.16168 | M11: Accept criteria:
A12: 0 | B12: ='DF raw data'!B14 -> -6.4676399 | C12: ='DF raw data'!C14 -> 8.3891802 | D12: ='DF raw data'!G14 -> -1.88008 | E12: ='DF raw data'!H14 -> 13.66151 | F12: ='DF raw data'!L14 -> 3.4684801 | G12: ='DF raw data'!M14 -> 6.42068 | H12: ='DF raw data'!Q14 -> 0.83068001 | I12: ='DF raw data'!R14 -> 9.1364698 | J12: ='DF raw data'!V14 -> -2.5324099 | K12: ='DF raw data'!W14 -> 9.2498903 | M12: Values within: +/- | N12: 17.5 | O12: 17.5
A13: 2 | B13: ='DF raw data'!B15 -> 8.7011099 | C13: ='DF raw data'!C15 -> 9.7253704 | D13: ='DF raw data'!G15 -> 12.37755 | E13: ='DF raw data'!H15 -> 5.1915698 | F13: ='DF raw data'!L15 -> 4.09445 | G13: ='DF raw data'!M15 -> 4.7983198 | H13: ='DF raw data'!Q15 -> -4.4016399 | I13: ='DF raw data'!R15 -> 7.60427 | J13: ='DF raw data'!V15 -> -2.24315 | K13: ='DF raw data'!W15 -> 9.1525402 | M13: Test result | N13: =IF(MAX(N$5:N$9)<N$12,IF(MIN(N$5:N$9)>-1*N12,"Pass","Fail"),"Fail") -> Pass | O13: =IF(MAX(O$5:O$9)<O$12,IF(MIN(O$5:O$9)>-1*O12,"Pass","Fail"),"Fail") -> Pass
A14: 4 | B14: ='DF raw data'!B16 -> 4.7386699 | C14: ='DF raw data'!C16 -> 3.19785 | D14: ='DF raw data'!G16 -> 3.85096 | E14: ='DF raw data'!H16 -> 1.81511 | F14: ='DF raw data'!L16 -> 4.48209 | G14: ='DF raw data'!M16 -> 3.79445 | H14: ='DF raw data'!Q16 -> 1.73384 | I14: ='DF raw data'!R16 -> 4.3744202 | J14: ='DF raw data'!V16 -> -0.15773 | K14: ='DF raw data'!W16 -> -0.84543997
A15: 6 | B15: ='DF raw data'!B17 -> -0.49972999 | C15: ='DF raw data'!C17 -> 9.7996101 | D15: ='DF raw data'!G17 -> 4.6564298 | E15: ='DF raw data'!H17 -> 5.6122899 | F15: ='DF raw data'!L17 -> 2.0755799 | G15: ='DF raw data'!M17 -> 10.53697 | H15: ='DF raw data'!Q17 -> -2.5315499 | I15: ='DF raw data'!R17 -> 10.79688 | J15: ='DF raw data'!V17 -> -5.5895801 | K15: ='DF raw data'!W17 -> 8.53722
A16: 8 | B16: ='DF raw data'!B18 -> 2.8903401 | C16: ='DF raw data'!C18 -> 4.7508702 | D16: ='DF raw data'!G18 -> -1.98798 | E16: ='DF raw data'!H18 -> 6.0141301 | F16: ='DF raw data'!L18 -> -0.85541999 | G16: ='DF raw data'!M18 -> 5.1718102 | H16: ='DF raw data'!Q18 -> -4.24789 | I16: ='DF raw data'!R18 -> 8.22295 | J16: ='DF raw data'!V18 -> -6.6420999 | K16: ='DF raw data'!W18 -> 2.89082
A17: 10 | B17: ='DF raw data'!B19 -> -0.79767001 | C17: ='DF raw data'!C19 -> 7.6264801 | D17: ='DF raw data'!G19 -> 0.46359 | E17: ='DF raw data'!H19 -> 6.5458298 | F17: ='DF raw data'!L19 -> -6.21807 | G17: ='DF raw data'!M19 -> 5.0285001 | H17: ='DF raw data'!Q19 -> -5.1016402 | I17: ='DF raw data'!R19 -> 8.1934404 | J17: ='DF raw data'!V19 -> -4.77562 | K17: ='DF raw data'!W19 -> 3.3285501
A19: DF indice | B19: ='DF raw data'!B4 -> 910 | D19: ='DF raw data'!G4 -> 911 | F19: ='DF raw data'!L4 -> 912 | H19: ='DF raw data'!Q4 -> 913 | J19: ='DF raw data'!V4 -> 914
A21: Average | B21: =AVERAGE(B11:B13) -> 2.33893 | C21: =AVERAGE(C11:C13) -> 6.7342202 | D21: 3.412533337 | E21: 5.325116633 | F21: 4.1829567 | G21: 5.332376633 | H21: -1.964173263 | I21: 6.228799933 | J21: -3.3504033 | K21: 5.4135835

Sheet 2nd Int
A1: HXR 2nd Integral SW measurements
A2: Background has been subtracted | M2: Center values | O2: Average of 3 points x = -2 to x = 2
A3: y pos | B3: 0 | C3: mm
A4: Gap | B4: 10 | C4: mm | D4: 15 | E4: mm | F4: 20 | G4: mm | H4: 30 | I4: mm | J4: 100 | K4: mm | M4: Gap | N4: Jx [muTm^2] | O4: Jy [muTm^2] | Q4: Gap interval | R4: Jx [muTm^2] | S4: Jy [muTm^2]
A5: Encoder | B5: ='DF raw data'!B7 -> 17221737 | D5: ='DF raw data'!G7 -> 17201685 | F5: ='DF raw data'!L7 -> 17181656 | H5: ='DF raw data'!Q7 -> 17141629 | J5: ='DF raw data'!V7 -> 16861665 | M5: =B4 -> 10 | N5: =B21 -> 2.2790671 | O5: =C21 -> 9.284508567 | Q5: 10-30 | R5: =MAX(N5:N8)-MIN(N5:N8) -> 17.3047211 | S5: =MAX(O5:O8)-MIN(O5:O8) -> 8.2815235
A6: x pos [mm] | B6: Jx [muTm^2] | C6: Jy [muTm^2] | D6: Jx [muTm^2] | E6: Jy [muTm^2] | F6: Jx [muTm^2] | G6: Jy [muTm^2] | H6: Jx [muTm^2] | I6: Jy [muTm^2] | J6: Jx [muTm^2] | K6: Jy [muTm^2] | M6: =D4 -> 15 | N6: =D21 -> -1.084454667 | O6: =E21 -> 17.56603207 | Q6: 10-100 | R6: =MAX(N5:N9)-MIN(N5:N9) -> 17.3047211 | S6: =MAX(O5:O9)-MIN(O5:O9) -> 8.2815235
A7: -10 | B7: ='DF raw data'!D9/100 -> 6.4160968 | C7: ='DF raw data'!E9/100 -> 26.729902 | D7: ='DF raw data'!I9/100 -> 9.1251935 | E7: ='DF raw data'!J9/100 -> 27.187129 | F7: ='DF raw data'!N9/100 -> 1.0650739 | G7: ='DF raw data'!O9/100 -> 33.539736 | H7: ='DF raw data'!S9/100 -> -2.8348047 | I7: ='DF raw data'!T9/100 -> 29.503682 | J7: ='DF raw data'!X9/100 -> 4.7911292 | K7: ='DF raw data'!Y9/100 -> 25.934307 | M7: =F4 -> 20 | N7: =F21 -> 5.031115303 | O7: =G21 -> 13.4915269
A8: -8 | B8: ='DF raw data'!D10/100 -> 6.7663123 | C8: ='DF raw data'!E10/100 -> 21.491836 | D8: ='DF raw data'!I10/100 -> -1.6050107 | E8: ='DF raw data'!J10/100 -> 23.383486 | F8: ='DF raw data'!N10/100 -> 2.1442245 | G8: ='DF raw data'!O10/100 -> 27.911748 | H8: ='DF raw data'!S10/100 -> 23.426804 | I8: ='DF raw data'!T10/100 -> 1.7336523 | J8: ='DF raw data'!X10/100 -> -14.047981 | K8: ='DF raw data'!Y10/100 -> 22.05168 | M8: =H4 -> 30 | N8: =H21 -> -12.2736058 | O8: =I21 -> 13.62112933
A9: -6 | B9: ='DF raw data'!D11/100 -> 27.311492 | C9: ='DF raw data'!E11/100 -> 17.924971 | D9: ='DF raw data'!I11/100 -> -7.0465588 | E9: ='DF raw data'!J11/100 -> 33.944736 | F9: ='DF raw data'!N11/100 -> 5.1210596 | G9: ='DF raw data'!O11/100 -> 12.614697 | H9: ='DF raw data'!S11/100 -> 8.2218695 | I9: ='DF raw data'!T11/100 -> 9.3186621 | J9: ='DF raw data'!X11/100 -> 0.99009338 | K9: ='DF raw data'!Y11/100 -> 17.274443 | M9: =J4 -> 100 | N9: =J21 -> -4.487287867 | O9: =K21 -> 11.29302083
A10: -4 | B10: ='DF raw data'!D12/100 -> 6.5943768 | C10: ='DF raw data'!E12/100 -> 30.906279 | D10: ='DF raw data'!I12/100 -> -11.183752 | E10: ='DF raw data'!J12/100 -> 40.147852 | F10: ='DF raw data'!N12/100 -> -8.4421802 | G10: ='DF raw data'!O12/100 -> 38.71041 | H10: ='DF raw data'!S12/100 -> 1.0374257 | I10: ='DF raw data'!T12/100 -> 25.086221 | J10: ='DF raw data'!X12/100 -> -0.92942612 | K10: ='DF raw data'!Y12/100 -> 18.881387
A11: -2 | B11: ='DF raw data'!D13/100 -> 1.3073761 | C11: ='DF raw data'!E13/100 -> 6.035625 | D11: ='DF raw data'!I13/100 -> -11.093423 | E11: ='DF raw data'!J13/100 -> 3.7810352 | F11: ='DF raw data'!N13/100 -> -0.62464729 | G11: ='DF raw data'!O13/100 -> 5.4240137 | H11: ='DF raw data'!S13/100 -> -36.808918 | I11: ='DF raw data'!T13/100 -> 14.520674 | J11: ='DF raw data'!X13/100 -> -8.0643909 | K11: ='DF raw data'!Y13/100 -> -5.5760645 | M11: Accept criteria:
A12: 0 | B12: ='DF raw data'!D14/100 -> -8.8973328 | C12: ='DF raw data'!E14/100 -> 9.4071777 | D12: ='DF raw data'!I14/100 -> -13.157885 | E12: ='DF raw data'!J14/100 -> 37.219053 | F12: ='DF raw data'!N14/100 -> 4.0556302 | G12: ='DF raw data'!O14/100 -> 20.52334 | H12: ='DF raw data'!S14/100 -> 2.0974365 | I12: ='DF raw data'!T14/100 -> 13.899062 | J12: ='DF raw data'!X14/100 -> -10.751899 | K12: ='DF raw data'!Y14/100 -> 16.943877 | M12: Values within: +/- | N12: 42.5 | O12: 42.5
A13: 2 | B13: ='DF raw data'!D15/100 -> 14.427158 | C13: ='DF raw data'!E15/100 -> 12.410723 | D13: ='DF raw data'!I15/100 -> 20.997944 | E13: ='DF raw data'!J15/100 -> 11.698008 | F13: ='DF raw data'!N15/100 -> 11.662363 | G13: ='DF raw data'!O15/100 -> 14.527227 | H13: ='DF raw data'!S15/100 -> -2.1093359 | I13: ='DF raw data'!T15/100 -> 12.443652 | J13: ='DF raw data'!X15/100 -> 5.3544263 | K13: ='DF raw data'!Y15/100 -> 22.51125 | M13: Test result | N13: =IF(MAX(N$5:N$9)<N$12,IF(MIN(N$5:N$9)>-1*N12,"Pass","Fail"),"Fail") -> Pass | O13: =IF(MAX(O$5:O$9)<O$12,IF(MIN(O$5:O$9)>-1*O12,"Pass","Fail"),"Fail") -> Pass
A14: 4 | B14: ='DF raw data'!D16/100 -> 11.739277 | C14: ='DF raw data'!E16/100 -> 13.925869 | D14: ='DF raw data'!I16/100 -> -1.9564557 | E14: ='DF raw data'!J16/100 -> 9.1432227 | F14: ='DF raw data'!N16/100 -> 9.5200513 | G14: ='DF raw data'!O16/100 -> 18.943115 | H14: ='DF raw data'!S16/100 -> 3.1160669 | I14: ='DF raw data'!T16/100 -> 8.2807715 | J14: ='DF raw data'!X16/100 -> -0.47935551 | K14: ='DF raw data'!Y16/100 -> 12.617178
A15: 6 | B15: ='DF raw data'!D17/100 -> -0.903349 | C15: ='DF raw data'!E17/100 -> 10.459453 | D15: ='DF raw data'!I17/100 -> 6.827486 | E15: ='DF raw data'!J17/100 -> 14.766113 | F15: ='DF raw data'!N17/100 -> 18.826401 | G15: ='DF raw data'!O17/100 -> 26.555791 | H15: ='DF raw data'!S17/100 -> -3.4520502 | I15: ='DF raw data'!T17/100 -> 12.929658 | J15: ='DF raw data'!X17/100 -> -6.3914075 | K15: ='DF raw data'!Y17/100 -> 13.192471
A16: 8 | B16: ='DF raw data'!D18/100 -> 5.5562463 | C16: ='DF raw data'!E18/100 -> 19.012949 | D16: ='DF raw data'!I18/100 -> 3.2514609 | E16: ='DF raw data'!J18/100 -> 23.061357 | F16: ='DF raw data'!N18/100 -> 6.9188281 | G16: ='DF raw data'!O18/100 -> 11.490938 | H16: ='DF raw data'!S18/100 -> -5.2029816 | I16: ='DF raw data'!T18/100 -> 25.538701 | J16: ='DF raw data'!X18/100 -> -9.127937 | K16: ='DF raw data'!Y18/100 -> 11.030693
A17: 10 | B17: ='DF raw data'!D19/100 -> -0.5997002 | C17: ='DF raw data'!E19/100 -> 12.064619 | D17: ='DF raw data'!I19/100 -> 1.8912421 | E17: ='DF raw data'!J19/100 -> 10.199727 | F17: ='DF raw data'!N19/100 -> -12.939199 | G17: ='DF raw data'!O19/100 -> 7.6271582 | H17: ='DF raw data'!S19/100 -> -2.5154633 | I17: ='DF raw data'!T19/100 -> 11.523066 | J17: ='DF raw data'!X19/100 -> -4.5422174 | K17: ='DF raw data'!Y19/100 -> -1.403877
A19: DF indice | B19: ='DF raw data'!B4 -> 910 | D19: ='DF raw data'!G4 -> 911 | F19: ='DF raw data'!L4 -> 912 | H19: ='DF raw data'!Q4 -> 913 | J19: ='DF raw data'!V4 -> 914
A21: Average | B21: =AVERAGE(B11:B13) -> 2.2790671 | C21: =AVERAGE(C11:C13) -> 9.284508567 | D21: -1.084454667 | E21: 17.56603207 | F21: 5.031115303 | G21: 13.4915269 | H21: -12.2736058 | I21: 13.62112933 | J21: -4.487287867 | K21: 11.29302083

Sheet DF raw data
A1: Comment: | B1: 2nd Int scan, PS 16332, 10 mm gap | F1: Comment: | G1: 2nd Int scan, PS 16332, 15 mm gap | K1: Comment: | L1: 2nd Int scan, PS 16332, 20 mm gap | P1: Comment: | Q1: 2nd Int scan, PS 16332, 30 mm gap | U1: Comment: | V1: 2nd Int scan, PS 16332, 100 mm gap
A2: Date: | B2: 9. okt 2017 | C2: 17:07:49 | F2: Date: | G2: 10. okt 2017 | H2: 11:10:19 | K2: Date: | L2: 10. okt 2017 | M2: 11:10:23 | P2: Date: | Q2: 9. okt 2017 | R2: 16:53:43 | U2: Date: | V2: 9. okt 2017 | W2: 17:07:49
A3: Z-Pos: | B3: 0 | F3: Z-Pos: | G3: 0 | K3: Z-Pos: | L3: 0 | P3: Z-Pos: | Q3: 0 | U3: Z-Pos: | V3: 0
A4: Indice: | B4: 910 | F4: Indice: | G4: 911 | K4: Indice: | L4: 912 | P4: Indice: | Q4: 913 | U4: Indice: | V4: 914
A5: Background Indice: | B5: 910 | F5: Background Indice: | G5: 911 | K5: Background Indice: | L5: 912 | P5: Background Indice: | Q5: 913 | U5: Background Indice: | V5: 914
A6: Temperature: | B6: 21.47 | F6: Temperature: | G6: 21.46 | K6: Temperature: | L6: 21.51 | P6: Temperature: | Q6: 21.49 | U6: Temperature: | V6: 21.5
A7: Encoder: | B7: 17221737 | F7: Encoder: | G7: 17201685 | K7: Encoder: | L7: 17181656 | P7: Encoder: | Q7: 17141629 | U7: Encoder: | V7: 16861665
A8: X | B8: IXb | C8: IZb | D8: JXb | E8: JZb | F8: X | G8: IXb | H8: IZb | I8: JXb | J8: JZb | K8: X | L8: IXb | M8: IZb | N8: JXb | O8: JZb | P8: X | Q8: IXb | R8: IZb | S8: JXb | T8: JZb | U8: X | V8: IXb | W8: IZb | X8: JXb | Y8: JZb
A9: -1 | B9: -4.3969002 | C9: 14.22149 | D9: 641.60968 | E9: 2672.9902 | F9: -1 | G9: -6.2635899 | H9: 19.271339 | I9: 912.51935 | J9: 2718.7129 | K9: -1 | L9: -5.5745001 | M9: 12.90019 | N9: 106.50739 | O9: 3353.9736 | P9: -1 | Q9: -7.6660299 | R9: 15.18155 | S9: -283.48047 | T9: 2950.3682 | U9: -1 | V9: -5.38656 | W9: 10.4308 | X9: 479.11292 | Y9: 2593.4307
A10: -0.80000001 | B10: 1.1733201 | C10: 6.6402998 | D10: 676.63123 | E10: 2149.1836 | F10: -0.80000001 | G10: -10.359 | H10: 4.5550799 | I10: -160.50107 | J10: 2338.3486 | K10: -0.80000001 | L10: 1.72247 | M10: 11.32039 | N10: 214.42245 | O10: 2791.1748 | P10: -0.80000001 | Q10: 0.073720001 | R10: 8.9603996 | S10: 2342.6804 | T10: 173.36523 | U10: -0.80000001 | V10: -3.3345301 | W10: 6.8810101 | X10: -1404.7981 | Y10: 2205.168
A11: -0.60000002 | B11: 10.50419 | C11: 9.1774302 | D11: 2731.1492 | E11: 1792.4971 | F11: -0.60000002 | G11: -7.3316998 | H11: 13.03016 | I11: -704.65588 | J11: 3394.4736 | K11: -0.60000002 | L11: 1.00253 | M11: 9.0402498 | N11: 512.10596 | O11: 1261.4697 | P11: -0.60000002 | Q11: 2.2349 | R11: 8.9984903 | S11: 822.18695 | T11: 931.86621 | U11: -0.60000002 | V11: -4.6210999 | W11: 7.0997801 | X11: 99.009338 | Y11: 1727.4443
A12: -0.40000001 | B12: 5.5775599 | C12: 11.54549 | D12: 659.43768 | E12: 3090.6279 | F12: -0.40000001 | G12: -4.6191902 | H12: 18.46022 | I12: -1118.3752 | J12: 4014.7852 | K12: -0.40000001 | L12: -1.23785 | M12: 17.19507 | N12: -844.21802 | O12: 3871.041 | P12: -0.40000001 | Q12: 0.70446998 | R12: 13.52768 | S12: 103.74257 | T12: 2508.6221 | U12: -0.40000001 | V12: -2.72913 | W12: 5.51437 | X12: -92.942612 | Y12: 1888.1387
A13: -0.2 | B13: 4.78332 | C13: 2.08811 | D13: 130.73761 | E13: 603.5625 | F13: -0.2 | G13: -0.25986999 | H13: -2.8777299 | I13: -1109.3423 | J13: 378.10352 | K13: -0.2 | L13: 4.98594 | M13: 4.7781301 | N13: -62.464729 | O13: 542.40137 | P13: -0.2 | Q13: -2.3215599 | R13: 1.94566 | S13: -3680.8918 | T13: 1452.0674 | U13: -0.2 | V13: -5.27565 | W13: -2.16168 | X13: -806.43909 | Y13: -557.60645
A14: 0 | B14: -6.4676399 | C14: 8.3891802 | D14: -889.73328 | E14: 940.71777 | F14: 0 | G14: -1.88008 | H14: 13.66151 | I14: -1315.7885 | J14: 3721.9053 | K14: 0 | L14: 3.4684801 | M14: 6.42068 | N14: 405.56302 | O14: 2052.334 | P14: 0 | Q14: 0.83068001 | R14: 9.1364698 | S14: 209.74365 | T14: 1389.9062 | U14: 0 | V14: -2.5324099 | W14: 9.2498903 | X14: -1075.1899 | Y14: 1694.3877
A15: 0.2 | B15: 8.7011099 | C15: 9.7253704 | D15: 1442.7158 | E15: 1241.0723 | F15: 0.2 | G15: 12.37755 | H15: 5.1915698 | I15: 2099.7944 | J15: 1169.8008 | K15: 0.2 | L15: 4.09445 | M15: 4.7983198 | N15: 1166.2363 | O15: 1452.7227 | P15: 0.2 | Q15: -4.4016399 | R15: 7.60427 | S15: -210.93359 | T15: 1244.3652 | U15: 0.2 | V15: -2.24315 | W15: 9.1525402 | X15: 535.44263 | Y15: 2251.125
A16: 0.40000001 | B16: 4.7386699 | C16: 3.19785 | D16: 1173.9277 | E16: 1392.5869 | F16: 0.40000001 | G16: 3.85096 | H16: 1.81511 | I16: -195.64557 | J16: 914.32227 | K16: 0.40000001 | L16: 4.48209 | M16: 3.79445 | N16: 952.00513 | O16: 1894.3115 | P16: 0.40000001 | Q16: 1.73384 | R16: 4.3744202 | S16: 311.60669 | T16: 828.07715 | U16: 0.40000001 | V16: -0.15773 | W16: -0.84543997 | X16: -47.935551 | Y16: 1261.7178
A17: 0.60000002 | B17: -0.49972999 | C17: 9.7996101 | D17: -90.3349 | E17: 1045.9453 | F17: 0.60000002 | G17: 4.6564298 | H17: 5.6122899 | I17: 682.7486 | J17: 1476.6113 | K17: 0.60000002 | L17: 2.0755799 | M17: 10.53697 | N17: 1882.6401 | O17: 2655.5791 | P17: 0.60000002 | Q17: -2.5315499 | R17: 10.79688 | S17: -345.20502 | T17: 1292.9658 | U17: 0.60000002 | V17: -5.5895801 | W17: 8.53722 | X17: -639.14075 | Y17: 1319.2471
A18: 0.80000001 | B18: 2.8903401 | C18: 4.7508702 | D18: 555.62463 | E18: 1901.2949 | F18: 0.80000001 | G18: -1.98798 | H18: 6.0141301 | I18: 325.14609 | J18: 2306.1357 | K18: 0.80000001 | L18: -0.85541999 | M18: 5.1718102 | N18: 691.88281 | O18: 1149.0938 | P18: 0.80000001 | Q18: -4.24789 | R18: 8.22295 | S18: -520.29816 | T18: 2553.8701 | U18: 0.80000001 | V18: -6.6420999 | W18: 2.89082 | X18: -912.7937 | Y18: 1103.0693
A19: 1 | B19: -0.79767001 | C19: 7.6264801 | D19: -59.97002 | E19: 1206.4619 | F19: 1 | G19: 0.46359 | H19: 6.5458298 | I19: 189.12421 | J19: 1019.9727 | K19: 1 | L19: -6.21807 | M19: 5.0285001 | N19: -1293.9199 | O19: 762.71582 | P19: 1 | Q19: -5.1016402 | R19: 8.1934404 | S19: -251.54633 | T19: 1152.3066 | U19: 1 | V19: -4.77562 | W19: 3.3285501 | X19: -454.22174 | Y19: -140.3877
